Cogmind - Beta 13 @@@ ROGUE MODE // 2024.04.07 @ 06:05:29 Player: f_ Result: Destroyed by S-43 Plague with Heavy Machine Gun Performance ------------- Evolutions (9) 4500 Regions Visited (12) 2400 Robots Destroyed (0) 0 Value Destroyed (0) 0 Prototype IDs (4) 80 Alien Tech Used (0) 0 Bonus (8406) 8406 TOTAL SCORE: 15386 Bonus ------- Pacifist 7906 Entered DSFs 500 Cogmind --------- Core Integrity 0/1600 Matter 105/300 Energy 100/100 System Corruption 2% Temperature Cool (0) Movement Flying (40) Location -1/Access Parts ------- > --- POWER (2) -------- (None) > --- PROPULSION (8) --- Q-thruster > --- UTILITY (13) ----- Improved System Guard > --- WEAPON (2) ------- (None) > --- INVENTORY (5) ---- Micro Nuclear Core Particle Reactor High-powered Shock Rifle Peak State ------------ > --- POWER ------------ Micro Nuclear Core Particle Reactor > --- PROPULSION ------- Improved Flight Unit Impulse Thruster Diametric Drive Q-thruster > --- UTILITY ---------- Advanced Signal Interpreter Hacking Suite Improved System Guard > --- WEAPON ----------- Vibroblade > --- INVENTORY -------- High-powered Shock Rifle [Rating: 61] Favorites ----------- Power Micro Nuclear Core Engine Heavy Ion Engine Power Core Micro Nuclear Core Reactor Particle Reactor Propulsion Xenon Bombardment Thruster Flight Unit Xenon Bombardment Thruster Utility Hacking Suite Device Cloaking Device Processor Advanced Signal Interpreter Hackware Hacking Suite Protection Hardened Medium Armor Plating Weapon Vibroblade Slashing Weapon Vibroblade Build | -11 -10 -9 -8 -7 -6 -5 -4 -3 -3 -2 -2 -1 ------- Run | Yrd Mat Mat Mat Fac Fac Fac Fac Res Tes Res DSF Acc Slots Evolved 18 | . . 2 2 2 2 2 2 2 . 2 . 2 Power 1 | . . . 1 . . . . . . . . . Propulsion 6 | . . 2 . 2 . . . 1 . 1 . . Utility 11 | . . . 1 . 2 2 2 1 . 1 . 2 Weapon . | . . . . . . . . . . . . . Parts Attached 26 | . . 5 5 5 2 . 1 2 1 . 1 4 Power 4 | . . 1 1 1 . . . . . . . 1 Engine 2 | . . 1 1 . . . . . . . . . Core 1 | . . . . 1 . . . . . . . . Reactor 1 | . . . . . . . . . . . . 1 Propulsion 14 | . . 4 2 3 1 . . 1 . . 1 2 Treads . | . . . . . . . . . . . . . Leg . | . . . . . . . . . . . . . Wheel . | . . . . . . . . . . . . . Hover . | . . . . . . . . . . . . . Flight 14 | . . 4 2 3 1 . . 1 . . 1 2 Utility 7 | . . . 2 1 1 . 1 1 1 . . . Device 3 | . . . 1 . 1 . . 1 . . . . Storage . | . . . . . . . . . . . . . Processor 2 | . . . . . . . 1 . 1 . . . Hackware 1 | . . . . 1 . . . . . . . . Protection 1 | . . . 1 . . . . . . . . . Artifact . | . . . . . . . . . . . . . Weapon 1 | . . . . . . . . . . . . 1 Energy Gun . | . . . . . . . . . . . . . Energy Cannon . | . . . . . . . . . . . . . Ballistic Gun . | . . . . . . . . . . . . . Ballistic Cannon . | . . . . . . . . . . . . . Launcher . | . . . . . . . . . . . . . Special Weapon . | . . . . . . . . . . . . . Impact Weapon . | . . . . . . . . . . . . . Slashing Weapon 1 | . . . . . . . . . . . . 1 Piercing Weapon . | . . . . . . . . . . . . . Special Melee Weapon . | . . . . . . . . . . . . . Unidentified Prototypes 4 | . . 1 1 . . . . . . . 1 1 Parts Lost 17 | . . 1 2 2 . . 2 1 1 1 1 6 Power 2 | . . 1 . . . . 1 . . . . . Propulsion 10 | . . . 2 1 . . 1 1 . . 1 4 Utility 5 | . . . . 1 . . . . 1 1 . 2 Weapon . | . . . . . . . . . . . . . Highest Loss Streak 5 | . . 1 2 2 . . 2 1 1 1 2 5 To Critical Strikes . | . . . . . . . . . . . . . Average Slot Usage (%) 33 | . . 35 52 59 53 52 47 43 39 34 30 10 Engine 2 | . . 4 7 7 6 5 2 . . . . . Core 2 | . . . . 4 6 5 5 4 4 4 4 . Flight 18 | . . 30 34 40 33 29 26 21 14 13 13 2 Device 3 | . . . 3 4 . 5 5 6 7 4 . . Processor 3 | . . . . . . . 2 4 7 8 8 6 Hackware 2 | . . . . 1 6 5 5 4 4 4 4 1 Naked Turns 74 | . 61 13 . . . . . . . . . . Heaviest Build 24 | . . 3 17 15 15 15 15 10 10 7 6 24 Greatest Support 32 | 3 3 20 20 32 28 28 28 29 18 18 19 27 Greatest Overweight (x) 1 | . . . 1 . . . . . . . . . Average Overweight (x) . | . . . . . . . . . . . . . Largest Inventory Capacity 5 | 5 5 5 5 5 5 5 5 5 5 5 5 5 Average Capacity 5 | 5 5 5 5 5 5 5 5 5 5 5 5 5 Most Carried 5 | 1 1 3 3 1 1 5 5 5 5 5 4 4 Average Carried 2 | . 1 . 2 . 1 2 4 4 4 5 4 3 Final Capacity 5 | 5 5 5 5 5 5 5 5 5 5 5 5 5 Final Carried 5 | 1 1 3 1 1 1 5 5 5 5 5 4 3 Class Distribution -------------------- 51% | Mutant 48% | Sprinter Dominant Class ---------------- Mutant | -10/Materials Mutant | -9/Materials Mutant | -8/Materials Sprinter | -7/Factory Sprinter | -6/Factory Sprinter | -5/Factory Sprinter | -4/Factory Sprinter | -3/Research Mutant | -3/Testing Mutant | -2/Research Sprinter | -2/DSF Mutant | -1/Access Resources | -11 -10 -9 -8 -7 -6 -5 -4 -3 -3 -2 -2 -1 ----------- Run | Yrd Mat Mat Mat Fac Fac Fac Fac Res Tes Res DSF Acc Matter Collected 158 | 39 . 12 . . . . . 20 . . . 87 Remotely . | . . . . . . . . . . . . . Salvage Created . | . . . . . . . . . . . . . Parts . | . . . . . . . . . . . . . Haulers Intercepted . | . . . . . . . . . . . . . Recyclers Shooed . | . . . . . . . . . . . . . Parts Field Recycled . | . . . . . . . . . . . . . Retrieved Matter . | . . . . . . . . . . . . . Parts Self-Destructed . | . . . . . . . . . . . . . Prevented . | . . . . . . . . . . . . . Kills | -11 -10 -9 -8 -7 -6 -5 -4 -3 -3 -2 -2 -1 ------- Run | Yrd Mat Mat Mat Fac Fac Fac Fac Res Tes Res DSF Acc Combat Hostiles Destroyed . | . . . . . . . . . . . . . Classes Destroyed . | . . . . . . . . . . . . . Best Kill Streak . | . . . . . . . . . . . . . Combat Bots Only . | . . . . . . . . . . . . . Max Kills in Single Turn . | . . . . . . . . . . . . . Gunslinging . | . . . . . . . . . . . . . Exploded . | . . . . . . . . . . . . . Melee . | . . . . . . . . . . . . . Uniques/NPCs Destroyed . | . . . . . . . . . . . . . Combat | -11 -10 -9 -8 -7 -6 -5 -4 -3 -3 -2 -2 -1 -------- Run | Yrd Mat Mat Mat Fac Fac Fac Fac Res Tes Res DSF Acc Hostile Shots Fired 359 | . 3 78 38 2 . 21 4 19 14 1 29 150 Missed 195 | . 2 43 20 . . 12 2 14 9 . 21 72 Damage Taken 3115 | . 10 358 263 32 . 165 36 117 95 91 143 1805 Core 2147 | . 10 230 23 . . 50 . 40 . 74 113 1607 Absorbed by Shields . | . . . . . . . . . . . . . Core Remaining (%) 91 | 100 96 42 95 100 100 95 100 . 96 . 87 . Volleys Fired . | . . . . . . . . . . . . . Largest . | . . . . . . . . . . . . . Hottest . | . . . . . . . . . . . . . Shots Fired . | . . . . . . . . . . . . . Gun . | . . . . . . . . . . . . . Cannon . | . . . . . . . . . . . . . Launcher . | . . . . . . . . . . . . . Special . | . . . . . . . . . . . . . Kinetic . | . . . . . . . . . . . . . Thermal . | . . . . . . . . . . . . . Explosive . | . . . . . . . . . . . . . Electromagnetic . | . . . . . . . . . . . . . Robot Hit Streak . | . . . . . . . . . . . . . Robot Miss Streak . | . . . . . . . . . . . . . Penetration Max . | . . . . . . . . . . . . . Secondary Targets . | . . . . . . . . . . . . . Shots Hit Robots . | . . . . . . . . . . . . . Core Hits 2 | . . . . . . . . . . . . 2 Critical Kills . | . . . . . . . . . . . . . Critical Parts Destroyed . | . . . . . . . . . . . . . Critical Strikes . | . . . . . . . . . . . . . Melee Attacks . | . . . . . . . . . . . . . Impact . | . . . . . . . . . . . . . Slashing . | . . . . . . . . . . . . . Piercing . | . . . . . . . . . . . . . Sneak Attacks . | . . . . . . . . . . . . . Combat Hostiles . | . . . . . . . . . . . . . Follow-up Attacks . | . . . . . . . . . . . . . Damage Inflicted 23 | . . . . . . . . . . . . 23 Guns . | . . . . . . . . . . . . . Cannons . | . . . . . . . . . . . . . Explosions . | . . . . . . . . . . . . . Melee . | . . . . . . . . . . . . . Ramming 23 | . . . . . . . . . . . . 23 Kinetic . | . . . . . . . . . . . . . Thermal . | . . . . . . . . . . . . . Explosive . | . . . . . . . . . . . . . Electromagnetic . | . . . . . . . . . . . . . Impact . | . . . . . . . . . . . . . Slashing . | . . . . . . . . . . . . . Piercing . | . . . . . . . . . . . . . Highest Corruption 2 | . . . . . . . . . . . . 2 Average Corruption 1 | . . . . . . . . . . . . 1 Corruption Purged . | . . . . . . . . . . . . . Corruption Blocked . | . . . . . . . . . . . . . Effects 1 | . . . . . . . . . . . . 1 Alerts 1 | . . . . . . . . . . . . 1 Overload Shots . | . . . . . . . . . . . . . Overflow Damage . | . . . . . . . . . . . . . Projectiles . | . . . . . . . . . . . . . Explosions . | . . . . . . . . . . . . . Melee . | . . . . . . . . . . . . . Knockbacks . | . . . . . . . . . . . . . Impact . | . . . . . . . . . . . . . Kinetic . | . . . . . . . . . . . . . Secondary . | . . . . . . . . . . . . . Self-Inflicted Damage 10 | . . . . . . . . . . . . 10 Shots . | . . . . . . . . . . . . . Rammed 6 | . . . . . . . . . . . . 6 Targets Rammed 6 | . . . . . . . . . . . . 6 Kicked . | . . . . . . . . . . . . . Crushed . | . . . . . . . . . . . . . Highest Temperature 306 | . . 2 5 306 15 12 1 . . . . . Average Temperature 57 | . . 2 3 184 7 2 1 . . . . . Received Heat Transfer 231 | . 6 78 27 18 . 9 9 9 30 . . 45 Effects 2 | . . . . 2 . . . . . . . . Energy Bleed 1 | . . . . 1 . . . . . . . . Short Circuit 1 | . . . . 1 . . . . . . . . Siege Activations . | . . . . . . . . . . . . . Robots Corrupted . | . . . . . . . . . . . . . Combat Hostiles . | . . . . . . . . . . . . . Parts Fried . | . . . . . . . . . . . . . Impact Corruptions . | . . . . . . . . . . . . . Robots Melted . | . . . . . . . . . . . . . Combat Hostiles . | . . . . . . . . . . . . . Parts Melted . | . . . . . . . . . . . . . Heat Transferred . | . . . . . . . . . . . . . Parts Sabotaged . | . . . . . . . . . . . . . Parts Stolen . | . . . . . . . . . . . . . Parts Stripped . | . . . . . . . . . . . . . Power Chain Reactions . | . . . . . . . . . . . . . Alert | -11 -10 -9 -8 -7 -6 -5 -4 -3 -3 -2 -2 -1 ------- Run | Yrd Mat Mat Mat Fac Fac Fac Fac Res Tes Res DSF Acc Peak Influence 319 | . 24 97 88 54 23 41 19 177 201 122 87 319 Initial 107 | . . 9 40 39 23 11 19 . 93 107 87 45 Average 64 | . 8 36 46 43 23 18 14 62 140 115 77 95 Maximum Alert Level 1 | . . . . . . . . . 1 . . 1 Low Security (%) 94 | 100 100 100 100 100 100 100 100 100 80 100 100 85 Level 1 5 | . . . . . . . . . 19 . . 14 Level 2 . | . . . . . . . . . . . . . Level 3 . | . . . . . . . . . . . . . Level 4 . | . . . . . . . . . . . . . Level 5 . | . . . . . . . . . . . . . High Security . | . . . . . . . . . . . . . Max Security . | . . . . . . . . . . . . . Squads Dispatched 18 | . 1 2 3 . . 1 . 4 . 1 . 6 Investigation 13 | . 1 2 2 . . 1 . 2 . 1 . 4 Extermination . | . . . . . . . . . . . . . Reinforcement 5 | . . . 1 . . . . 2 . . . 2 Assault . | . . . . . . . . . . . . . Garrison . | . . . . . . . . . . . . . Intercept . | . . . . . . . . . . . . . Searches Triggered . | . . . . . . . . . . . . . Construction Impeded . | . . . . . . . . . . . . . Haulers Reinforced . | . . . . . . . . . . . . . Active Scanning Responses . | . . . . . . . . . . . . . Cargo Convoy Interrupts . | . . . . . . . . . . . . . Stealth | -11 -10 -9 -8 -7 -6 -5 -4 -3 -3 -2 -2 -1 --------- Run | Yrd Mat Mat Mat Fac Fac Fac Fac Res Tes Res DSF Acc Distress Signals 10 | . 1 3 1 . . 1 . 1 1 . . 2 Communications Jammed . | . . . . . . . . . . . . . Distress Signals . | . . . . . . . . . . . . . Times Spotted 122 | . 3 21 16 3 . 9 3 23 9 2 2 31 Peak Tracking Total 19 | . 7 19 13 3 . 11 3 18 7 2 2 16 Tactical Retreats 11 | . . 1 1 . . . . 2 2 . . 5 Traps | -11 -10 -9 -8 -7 -6 -5 -4 -3 -3 -2 -2 -1 ------- Run | Yrd Mat Mat Mat Fac Fac Fac Fac Res Tes Res DSF Acc Traps Triggered 1 | . 1 . . . . . . . . . . . Indirectly . | . . . . . . . . . . . . . Trap Hack Attempts . | . . . . . . . . . . . . . Triggered . | . . . . . . . . . . . . . Disarmed . | . . . . . . . . . . . . . Reprogrammed . | . . . . . . . . . . . . . Reused . | . . . . . . . . . . . . . Traps Extracted . | . . . . . . . . . . . . . Installed . | . . . . . . . . . . . . . Triggered . | . . . . . . . . . . . . . Machines | -11 -10 -9 -8 -7 -6 -5 -4 -3 -3 -2 -2 -1 ---------- Run | Yrd Mat Mat Mat Fac Fac Fac Fac Res Tes Res DSF Acc Machines Disabled . | . . . . . . . . . . . . . Max in Single Turn . | . . . . . . . . . . . . . Machines Repaired . | . . . . . . . . . . . . . Machines Dismantled . | . . . . . . . . . . . . . Machines Sabotaged . | . . . . . . . . . . . . . Overloaded Fab Kills . | . . . . . . . . . . . . . Hacking | -11 -10 -9 -8 -7 -6 -5 -4 -3 -3 -2 -2 -1 --------- Run | Yrd Mat Mat Mat Fac Fac Fac Fac Res Tes Res DSF Acc Machines Accessed 27 | . 3 5 3 . . 3 . 4 2 2 . 5 Terminals 25 | . 3 5 3 . . 2 . 4 2 2 . 4 Fabricators . | . . . . . . . . . . . . . Repair Stations . | . . . . . . . . . . . . . Recycling Units 2 | . . . . . . 1 . . . . . 1 Scanalyzers . | . . . . . . . . . . . . . Garrison Access . | . . . . . . . . . . . . . Total Hacks 73 | . 11 16 8 . . 6 . 9 4 4 . 15 Successful 18 | . 3 3 2 . . 2 . 2 3 1 . 2 Failed 55 | . 8 13 6 . . 4 . 7 1 3 . 13 Catastrophic 15 | . 1 5 4 . . . . 3 . 1 . 1 Database Lockouts . | . . . . . . . . . . . . . Manual 47 | . 8 16 8 . . 1 . 4 3 3 . 4 Terminals 68 | . 11 16 8 . . 4 . 9 4 4 . 12 Fabricators . | . . . . . . . . . . . . . Repair Stations . | . . . . . . . . . . . . . Recycling Units 5 | . . . . . . 2 . . . . . 3 Scanalyzers . | . . . . . . . . . . . . . Garrison Access . | . . . . . . . . . . . . . Terminal Hacks 8 | . 1 1 1 . . 1 . 1 2 1 . . Open DSF 3 | . . . . . . 1 . 1 . 1 . . Level Access Points 4 | . 1 1 1 . . . . . 1 . . . Alert Level 1 | . . . . . . . . . 1 . . . Fabricator Hacks . | . . . . . . . . . . . . . Repair Station Hacks . | . . . . . . . . . . . . . Recycling Unit Hacks 2 | . . . . . . 1 . . . . . 1 Report Inventory 1 | . . . . . . . . . . . . 1 Retrieve Matter 1 | . . . . . . 1 . . . . . . Scanalyzer . | . . . . . . . . . . . . . Garrison Access Hacks . | . . . . . . . . . . . . . Unauthorized Hacks 8 | . 2 2 1 . . . . 1 1 . . 1 Terminals 8 | . 2 2 1 . . . . 1 1 . . 1 Assimilate 1 | . . . . . . . . . 1 . . . Botnet 7 | . 2 2 1 . . . . 1 . . . 1 Fabricators . | . . . . . . . . . . . . . Repair Stations . | . . . . . . . . . . . . . Recycling Units . | . . . . . . . . . . . . . Scanalyzers . | . . . . . . . . . . . . . Garrison Access . | . . . . . . . . . . . . . Data Cores Recovered . | . . . . . . . . . . . . . Used . | . . . . . . . . . . . . . Hacking Detections 25 | . 3 5 3 . . 3 . 3 2 1 . 5 Full Trace Events 16 | . 2 4 2 . . 1 . 2 . 1 . 4 Feedback Events 2 | . . . . . . . . . . . . 2 Corruption 2 | . . . . . . . . . . . . 2 Feedback Blocked . | . . . . . . . . . . . . . Robot Schematics Acquired . | . . . . . . . . . . . . . Robots Built . | . . . . . . . . . . . . . Authchips . | . . . . . . . . . . . . . Time . | . . . . . . . . . . . . . Total Robot Build Rating . | . . . . . . . . . . . . . Part Schematics Acquired . | . . . . . . . . . . . . . Parts Built . | . . . . . . . . . . . . . Authchips . | . . . . . . . . . . . . . Time . | . . . . . . . . . . . . . Total Part Build Rating . | . . . . . . . . . . . . . Parts Repaired . | . . . . . . . . . . . . . Time . | . . . . . . . . . . . . . Parts Recycled . | . . . . . . . . . . . . . Recycled Matter . | . . . . . . . . . . . . . Retrieved Matter . | . . . . . . . . . . . . . Retrieved Components . | . . . . . . . . . . . . . Parts Scanalyzed . | . . . . . . . . . . . . . Part Schematics Acquired . | . . . . . . . . . . . . . Parts Damaged . | . . . . . . . . . . . . . Bothacking | -11 -10 -9 -8 -7 -6 -5 -4 -3 -3 -2 -2 -1 ------------ Run | Yrd Mat Mat Mat Fac Fac Fac Fac Res Tes Res DSF Acc Used RIF Installer . | . . . . . . . . . . . . . Robots Hacked . | . . . . . . . . . . . . . Non-combat . | . . . . . . . . . . . . . Combat . | . . . . . . . . . . . . . Robot Hacks Applied . | . . . . . . . . . . . . . Relay Couplers Released . | . . . . . . . . . . . . . Fabnet Peak Effective % . | . . . . . . . . . . . . . Robots Rewired . | . . . . . . . . . . . . . Allies Hacked . | . . . . . . . . . . . . . Hacks Repelled . | . . . . . . . . . . . . . Allies | -11 -10 -9 -8 -7 -6 -5 -4 -3 -3 -2 -2 -1 -------- Run | Yrd Mat Mat Mat Fac Fac Fac Fac Res Tes Res DSF Acc Total Allies 1 | . . . . . . . . . 1 . . . Largest Group 1 | . . . . . . . . . 1 . . . Highest-Rated Group 26 | . . . . . . . . . 26 . . . Highest-Rated Ally 26 | . . . . . . . . . 26 . . . Total Orders . | . . . . . . . . . . . . . Ally Attacks . | . . . . . . . . . . . . . Total Damage . | . . . . . . . . . . . . . Kills . | . . . . . . . . . . . . . Allies Corrupted . | . . . . . . . . . . . . . Allies Melted . | . . . . . . . . . . . . . Intel | -11 -10 -9 -8 -7 -6 -5 -4 -3 -3 -2 -2 -1 ------- Run | Yrd Mat Mat Mat Fac Fac Fac Fac Res Tes Res DSF Acc Robot Analysis Total . | . . . . . . . . . . . . . Derelict Logs Recovered . | . . . . . . . . . . . . . Drone Launches . | . . . . . . . . . . . . . Drone Recoveries . | . . . . . . . . . . . . . Exploration | -11 -10 -9 -8 -7 -6 -5 -4 -3 -3 -2 -2 -1 ------------- Run | Yrd Mat Mat Mat Fac Fac Fac Fac Res Tes Res DSF Acc Turns Passed 884 | 11 61 89 56 54 13 127 24 90 109 32 22 196 Spaces Moved 2425 | 19 122 223 148 186 38 448 74 286 300 93 71 417 Core 442 | 19 122 24 . . . . . . . . . 277 Treads . | . . . . . . . . . . . . . Legs . | . . . . . . . . . . . . . Wheels . | . . . . . . . . . . . . . Hover . | . . . . . . . . . . . . . Flight 1983 | . . 199 148 186 38 448 74 286 300 93 71 140 Fastest Speed 22 | 50 50 29 29 22 27 27 27 27 34 34 30 28 Average Speed 33 | 50 50 35 32 24 27 27 27 27 34 34 30 43 Slowest Speed 109 | 50 50 50 109 29 27 27 29 34 34 34 30 50 Overloaded Moves . | . . . . . . . . . . . . . Propulsion Burnouts . | . . . . . . . . . . . . . Robots Hopped 20 | . . 5 4 . . 2 . 4 4 . . 1 Cave-ins Triggered . | . . . . . . . . . . . . . Exploration Rate (%) 21 | 3 29 34 25 8 2 15 1 11 47 3 83 17 Regions Visited 12 Branch Regions 1 Pre-discovered Areas . | . . . . . . . . . . . . . Known Exits Taken 7 | . 1 1 1 . . . 1 1 1 1 . . Unknown Exits Taken 4 | 1 . . . 1 1 1 . . . . . . Scrap Searched . | . . . . . . . . . . . . . Spaces Dug . | . . . . . . . . . . . . . Terrain Destroyed . | . . . . . . . . . . . . . Melee . | . . . . . . . . . . . . . Projectile . | . . . . . . . . . . . . . AOE . | . . . . . . . . . . . . . Terrain Rammed . | . . . . . . . . . . . . . Walls Destroyed . | . . . . . . . . . . . . . Machines Disabled . | . . . . . . . . . . . . . Actions | -11 -10 -9 -8 -7 -6 -5 -4 -3 -3 -2 -2 -1 --------- Run | Yrd Mat Mat Mat Fac Fac Fac Fac Res Tes Res DSF Acc Total 2459 | 19 121 225 149 191 39 451 77 291 303 93 71 429 Wait 7 | . . . . . . . . 6 1 . . . Move 2376 | 18 121 212 139 185 37 443 73 278 292 93 70 415 Hop 18 | . . 5 4 . . 2 . 3 3 . . 1 Pick Up 17 | 1 . 3 . 1 . 5 2 2 3 . . . Fast Attach 14 | . . 4 3 4 1 . . . 1 . . 1 Attach 11 | . . 1 2 1 . . 1 2 . . 1 3 Detach 2 | . . . . . . . . . . . . 2 Swap 1 | . . . . . 1 . . . . . . . Drop 7 | . . . 1 . . 1 1 . 3 . . 1 Fire . | . . . . . . . . . . . . . Melee . | . . . . . . . . . . . . . Ram 6 | . . . . . . . . . . . . 6 Kick . | . . . . . . . . . . . . . Crush . | . . . . . . . . . . . . . Escape Stasis . | . . . . . . . . . . . . . Rewire . | . . . . . . . . . . . . . Trap . | . . . . . . . . . . . . . Miscellaneous . | . . . . . . . . . . . . . Route ------- -11/Scrapyard -10/Materials (discovered 3 exits: *Mat x3) -9/Materials (discovered 4 exits: *Mat x3 / [*Min]) -8/Materials (discovered 3 exits: *Fac x3) -7/Factory -6/Factory -5/Factory -4/Factory -3/Research -3/Testing -2/Research -2/DSF -1/Access History --------- Turn | Location | Event 5 | -11/Scrapyard | Discovered new exit (range 15) 12 | -11/Scrapyard | Entered Materials 61 | -10/Materials | Identified exit to Materials 73 | -10/Materials | Entered another Materials area 73 | -9/Materials | Evolved 2 slots: Propulsion x2 121 | -9/Materials | Discovered new exit (range 11) 126 | -9/Materials | Identified exit to Materials 158 | -9/Materials | Core integrity fell below 50% 162 | -9/Materials | Entered another Materials area 162 | -8/Materials | Evolved 2 slots: Power x1, Utility x1 209 | -8/Materials | Identified exit to Factory 218 | -8/Materials | Entered Factory 218 | -7/Factory | Evolved 2 slots: Propulsion x2 247 | -7/Factory | Discovered new exit (range 15) 272 | -7/Factory | Entered another Factory area 272 | -6/Factory | Evolved 2 slots: Utility x2 282 | -6/Factory | Discovered new exit (range 13) 285 | -6/Factory | Entered another Factory area 285 | -5/Factory | Evolved 2 slots: Utility x2 409 | -5/Factory | Discovered new exit (range 11) 412 | -5/Factory | Entered another Factory area 412 | -4/Factory | Evolved 2 slots: Utility x2 423 | -4/Factory | Discovered new exit (range 5) 427 | -4/Factory | Identified exit to Research 436 | -4/Factory | Entered Research 436 | -3/Research | Evolved 2 slots: Propulsion x1, Utility x1 466 | -3/Research | Build established: Sprinter 489 | -3/Research | Spotted B-86 Titan 513 | -3/Research | Discovered new exit (range 16) 525 | -3/Research | Identified exit to Testing 526 | -3/Research | Entered Testing 567 | -3/Testing | Identified exit to Research 594 | -3/Testing | Found Prototype Slashing Weapon 635 | -3/Testing | Entered Research 635 | -2/Research | Evolved 2 slots: Propulsion x1, Utility x1 667 | -2/Research | Identified exit to DSF 667 | -2/Research | Entered DSF 683 | -2/DSF | Discovered new exit (range 16) 689 | -2/DSF | Additional patrols routed to DSF 689 | -2/DSF | Identified exit to Access 689 | -2/DSF | Entered Access 689 | -1/Access | Evolved 2 slots: Utility x2 718 | -1/Access | Identified Vibroblade 764 | -1/Access | Lost 5 parts (4n1u) 770 | -1/Access | Spotted B-99 Colossus 837 | -1/Access | Core integrity fell below 50% 869 | -1/Access | Core integrity fell below 20% 885 | -1/Access | Destroyed by S-43 Plague with Heavy Machine Gun Last Messages --------------- Terminal linked with 0 systems. Awaiting botnet instructions. 00823_ ALERT: Suspicious activity at Terminal A010. Dispatching Investigation squad. 00825_ P-80 Master resets R-10 Processor, system corruption cleaned. 00843_ G-73 Enforcer IFF system glitched. 00843_ P-80 Master resets P-80 Master, system corruption cleaned. 00843_ Terminal disabled. 00859_ Penetrated by Slug. 00859_ Connecting with Terminal... Feedback: System corruption (+1%). 00859_ ALERT: Suspicious activity at Terminal A007. Dispatching Investigation squad. 00862_ ALERT: Security rotation in progress. 00865_ Fabricator disabled. 00873_ Acquired Q-thruster. 00881_ System corrupted: IFF burst signal emitted. Map ----- +----------------------------------------------------+ | ?????????????????????????????????????????????????? | | ?????????????????????????????????????????????????? | | ?????????????????????????????????????????????????? | | ?????????????????????????????????????????????????? | | ?????????????????????????????????????????????????? | | ?????????????????????????????????????????????????? | | ?????????????????????????????????????????????????? | | ?????????????????????????????????????????????????? | | ?????????????????????????????????????????????????? | | ?????????????????????????????????????????????????? | | ???? ?????????? ??????????????????????? | | ?? #??????? ??????????????????????? | | ?????# ??????????????????????? | | "?????# #?????????????????????? | | ""????# #?????????????????????? | | " ""????# #?????????????????????? | | " ""#???# #?????????????????????? | | """ T"#???# #?????????????????????? | | """ ""#???# #?????????????????????? | | " ""#???# #?????????????????????? | | " ""#???# #?????????????????????? | | ""#???# #?????????????????????? | | "#???# #?????????????????????? | | #?##### ################??????? | | ### # # #??????? | | # p@ # #??????? | | ########## # spp# """"" #??????? | | #????????## p sp s/ ""Y"" #??????? | | #?????????# ss # ] #??????? | | "" #?????????# # #??????? | | """ ########??# ################??????? | | F"" #??#######+####?????????????????????? | | "" #??????? ???????????????????????? | | """ #????? ?????????????????????? | | " #???# ???????????????????? | | #???# #??????????????????? | | #???# ""#??????????????????? | | #???# ""#??????????????????? | | #########/####???# " S"#??????????????????? | | #??????# ! """ """#??????????????????? | | !!! #??????# """ """#??????????????????? | | !!! "" #??????# " ""????????????????????? | | !! """#??????# ?? ?????????????????????? | | T"#??????# ?? ?????????????????????? | | """#??????###????####?????????????????????? | | "" #??????????????????????????????????????? | | #??????????????????????????????????????? | | #??????????????????????????????????????? | | ##+##+#####??????????????????????????????????????? | | #??????????????????????????????????????????? | +----------------------------------------------------+ Best States ------------- Heat Dissipation 52 Energy Generation 33 Energy Capacity 390 Matter Stores 139 Matter Capacity 300 Sight Range 16 Terrain Scan Density 10 Cloak Strength 2 Corruption Containment 12 Armor Coverage 225 Evasion (%) 76 Offensive Hacking 10 Item Schematics ----------------- None Robot Schematics ------------------ None Fabricated ------------ Nothing Alien Tech Used ----------------- None Achievements -------------- None Challenges ------------ None Game ------ Seed LayeredImpactMagmablaster Manual? 0 Play Time 00:34:37 Cumulative 165.2 hours Start 2024.04.07 @ 05:32:01 End 2024.04.07 @ 06:05:29 Sessions 1 Manual Loads 0 Difficulty Rogue Special Mode None Game No. 131 Rogue 126 Adventurer 0 Explorer 5 Win Type - Total 4 Types 1/0/1/2/0/0/0/0/0 Lore% 52 Gallery% 61 Achievement% 47 Wizard Run 0 Options --------- Layout 1 ASCII 0 Keyboard 0 Movement Mouse Keybinds 0 Fullscreen 2 Font 24/Tamsyn Map View 50x35 Zoom Use 0% Tactical HUD 1 Map Filters NONE Filters NONE Steam 1 RUN: 6b44116a-f941-4856-bf76-b69c8a14dbb8